bitfinex/quotes_BTCUSD_20251011
["timestamp","ask_amount","ask_price","bid_price","bid_amount"]
[1760213056861,0.62987419,111190.0,111180.0,0.001]
[1760213057076,1.52341792,111190.0,111180.0,0.001]
[1760213057716,1.57153882,111190.0,111180.0,0.001]
[1760213057934,1.52341792,111190.0,111180.0,0.001]
[1760213058148,0.59069419,111190.0,111180.0,0.02052]
[1760213058364,1.49326602,111190.0,111180.0,0.001]
[1760213058963,0.17990465,111170.0,111160.0,0.20843676]
[1760213059194,0.17990465,111170.0,111160.0,0.23508804]
[1760213059407,0.51990217,111180.0,111170.0,0.17990465]
[1760213059539,0.5288659,111190.0,111170.0,0.26462465]
[1760213059920,0.19414994,111210.0,111190.0,0.17987229]
[1760213060141,0.19414994,111210.0,111180.0,0.23810846]
[1760213060142,0.17987229,111190.0,111180.0,0.19940846]
[1760213060349,0.17987229,111190.0,111180.0,0.08472]
[1760213060557,0.17988846,111180.0,111170.0,0.01952]
[1760213060769,0.17988846,111180.0,111170.0,0.19942465]
[1760213060974,0.53428229,111190.0,111180.0,0.04602]
[1760213061179,0.56054229,111190.0,111180.0,0.01952]
[1760213061628,0.34,111190.0,111180.0,0.04602]
[1760213061846,0.17985699,111200.0,111180.0,0.26695717]
[1760213062052,0.18883193,111210.0,111190.0,0.05822]
[1760213062259,0.19416611,111200.0,111190.0,0.01952]
[1760213063143,0.17987229,111190.0,111180.0,0.01952]
[1760213063354,0.54313855,111220.0,111190.0,0.08472]
[1760213063355,0.20313855,111220.0,111190.0,0.08472]
[1760213063567,0.20423554,111230.0,111210.0,0.19935539]
[1760213063789,0.18982554,111230.0,111220.0,0.04602]
[1760213064017,0.00096528,111230.0,111220.0,0.26454377]
[1760213064881,0.00111645,111230.0,111220.0,0.26454377]
[1760213065315,0.19533405,111230.0,111210.0,0.19935911]
[1760213065535,0.18092405,111230.0,111220.0,0.08472]
[1760213065743,0.18092405,111230.0,111220.0,0.26454377]
[1760213065944,0.00111645,111230.0,111220.0,0.26454377]
[1760213066121,0.18092405,111230.0,111220.0,0.26554377]
[1760213066706,0.18092405,111230.0,111220.0,0.04702]
[1760213067312,0.18092405,111230.0,111220.0,0.22684377]
[1760213067831,0.22163405,111230.0,111220.0,0.001]
[1760213068448,1.49383778,111230.0,111220.0,0.001]
[1760213068876,1.45517778,111230.0,111220.0,0.001]
[1760213069084,1.49383778,111230.0,111220.0,0.001]
[1760213069295,0.51982377,111220.0,111210.0,0.01852]
[1760213069532,0.53413377,111220.0,111210.0,0.01852]
[1760213069775,0.17983994,111210.0,111200.0,0.0285128]
[1760213070002,0.19414994,111210.0,111200.0,0.01952]
[1760213070227,0.17985611,111200.0,111190.0,0.01952]
[1760213070510,0.17985611,111200.0,111190.0,0.19939229]
[1760213070727,0.53416611,111200.0,111190.0,0.01952]
[1760213071165,0.53416611,111200.0,111190.0,0.04525]
[1760213071390,0.34,111210.0,111200.0,0.17985611]
[1760213071627,0.51983994,111210.0,111200.0,0.26270611]
[1760213072501,0.51983994,111210.0,111200.0,0.08285]
[1760213072725,0.51983994,111210.0,111200.0,0.04525]
[1760213073138,0.53414994,111210.0,111200.0,0.01952]
[1760213073560,0.53414994,111210.0,111200.0,0.04525]
[1760213073944,0.53414994,111210.0,111200.0,0.04642415]
[1760213074795,0.18881495,111220.0,111200.0,0.26488026]
[1760213074995,0.00899118,111220.0,111210.0,0.23695994]
[1760213075196,0.18881495,111220.0,111210.0,0.26268994]
[1760213075635,0.20349443,111230.0,111210.0,0.26268994]
[1760213075782,0.54349443,111230.0,111220.0,0.01852]
[1760213076166,0.52991443,111230.0,111220.0,0.08285]
[1760213076593,0.52991443,111230.0,111210.0,0.19835994]
[1760213076594,0.17982377,111220.0,111210.0,0.01852]
[1760213076931,0.17983994,111210.0,111200.0,0.23697477]
[1760213077137,0.17983994,111210.0,111200.0,0.04425]
[1760213077301,0.19414994,111210.0,111200.0,0.01852]
[1760213077906,0.22127994,111210.0,111190.0,0.05812]
[1760213078138,0.19416611,111200.0,111190.0,0.01952]
[1760213078338,0.17987229,111190.0,111180.0,0.08301085]
[1760213078537,0.17987229,111190.0,111180.0,0.28862931]
[1760213078742,0.17987229,111190.0,111180.0,0.10874085]
[1760213078944,0.17987229,111190.0,111180.0,0.28862931]
[1760213079161,0.17987229,111190.0,111180.0,0.10874085]
[1760213079916,0.22008229,111190.0,111180.0,0.06549085]
[1760213080134,0.15500514,111200.0,111180.0,0.14834085]
[1760213080338,0.17987229,111190.0,111180.0,0.32822931]
[1760213080767,0.15500514,111200.0,111180.0,0.33057803]
[1760213080970,0.17987229,111190.0,111180.0,0.14834085]
[1760213081174,0.17987229,111190.0,111180.0,0.14734085]
[1760213082069,0.17987229,111190.0,111180.0,0.08401085]
[1760213082070,0.20445229,111190.0,111180.0,0.08401085]
[1760213082270,1.50554792,111190.0,111180.0,0.06649085]
[1760213083198,1.47539602,111190.0,111180.0,0.06649085]
[1760213083587,1.50554792,111190.0,111180.0,1e-08]
[1760213084620,0.51990465,111170.0,111160.0,0.08044069]
[1760213084814,0.53479465,111170.0,111160.0,0.08059197]
[1760213085068,0.55948465,111170.0,111160.0,0.08059197]
[1760213085297,0.53479465,111170.0,111160.0,0.08059197]
[1760213085534,0.53479465,111170.0,111160.0,0.10025197]
[1760213085712,0.51990465,111170.0,111160.0,0.16755197]
[1760213085933,0.51990465,111170.0,111160.0,0.3474728]
[1760213086137,0.17988897,111180.0,111170.0,0.17990465]
[1760213086322,0.1888659,111190.0,111170.0,0.26686465]
[1760213086524,0.34,111190.0,111180.0,0.19954846]
[1760213086746,0.51987229,111190.0,111180.0,0.08696]
[1760213086950,0.51987229,111190.0,111180.0,0.01966]
[1760213087159,0.17988846,111180.0,111170.0,0.01966]
[1760213087365,0.17990465,111170.0,111160.0,0.28016762]
[1760213087562,0.17990465,111170.0,111160.0,0.12739197]
[1760213087765,0.19479465,111170.0,111160.0,0.10025197]
[1760213087967,0.53479465,111170.0,111160.0,0.10025197]
[1760213088107,0.55948465,111170.0,111160.0,0.08059197]
[1760213088625,0.55948465,111170.0,111160.0,0.08159197]
[1760213088946,0.51990465,111170.0,111160.0,0.12839197]
[1760213089369,0.54459465,111170.0,111160.0,0.08159197]
[1760213089560,0.51990465,111170.0,111160.0,0.10125197]
[1760213089766,0.51990465,111170.0,111160.0,0.04795128]
[1760213089938,1.47877838,111170.0,111160.0,0.00115128]
[1760213090290,1.47877838,111170.0,111160.0,0.00015128]
[1760213090458,0.54459465,111170.0,111160.0,0.00015128]
[1760213090797,0.19477846,111180.0,111160.0,0.08711128]
[1760213091013,1.16809153,111190.0,111170.0,0.23971861]
[1760213091014,0.17987516,111190.0,111170.0,0.23971861]
[1760213091227,0.17987516,111190.0,111180.0,0.08696]
[1760213091450,0.17987516,111190.0,111180.0,0.0468]
[1760213091882,0.17987516,111190.0,111170.0,0.01966]
[1760213091883,0.17988846,111180.0,111170.0,0.01966]
[1760213092299,0.17988846,111180.0,111170.0,0.04973616]
[1760213093065,0.21765846,111180.0,111170.0,0.00293616]
[1760213094135,0.55765846,111180.0,111170.0,0.00293616]
[1760213095168,0.59829846,111180.0,111170.0,0.00293616]
[1760213095765,0.55765846,111180.0,111170.0,0.00293616]
[1760213096827,0.59829846,111180.0,111170.0,0.00293616]
[1760213097276,1.52199409,111180.0,111170.0,0.00293616]
[1760213098919,1.60812417,111180.0,111170.0,0.00293616]
[1760213099904,0.71458044,111180.0,111170.0,0.00293616]
[1760213100317,1.60912417,111180.0,111170.0,0.00293616]
[1760213100572,1.52299409,111180.0,111170.0,0.00293616]
[1760213101470,1.52399409,111180.0,111170.0,0.00293616]
[1760213102969,1.14335409,111180.0,111170.0,0.00293616]
[1760213103218,1.18399409,111180.0,111170.0,0.00293616]
[1760213103424,1.52399409,111180.0,111170.0,0.00293616]
[1760213104095,0.58981036,111180.0,111170.0,0.00293616]
[1760213104332,0.53496846,111180.0,111170.0,0.04973616]
[1760213105005,0.19396846,111180.0,111170.0,0.04973616]
[1760213105223,0.55965846,111180.0,111170.0,0.02259616]
[1760213105701,0.55865846,111180.0,111170.0,0.02259616]
[1760213105894,0.53496846,111180.0,111170.0,0.04973616]
[1760213106134,0.52088846,111180.0,111170.0,0.08989616]
[1760213106347,0.52088846,111180.0,111170.0,0.04973616]
[1760213106580,0.51988846,111180.0,111170.0,0.04973616]
[1760213107007,0.34,111180.0,111170.0,0.26980081]
[1760213107428,0.51988846,111180.0,111170.0,0.26980081]
[1760213107634,0.18884891,111200.0,111180.0,0.17988449]
[1760213107841,0.20456229,111190.0,111170.0,0.23972273]
[1760213108285,0.19296846,111180.0,111170.0,0.01966]
[1760213108541,1.09810602,111190.0,111180.0,0.01966]
[1760213108542,0.55655229,111190.0,111180.0,0.01966]
[1760213108743,0.53186229,111190.0,111180.0,0.0468]
[1760213108946,0.17988846,111180.0,111170.0,0.19956465]
[1760213109156,0.55655229,111190.0,111170.0,0.19956465]
[1760213109385,0.55655321,111190.0,111170.0,0.23972349]
[1760213109596,0.17987321,111190.0,111180.0,0.22668846]
[1760213109799,0.17987321,111190.0,111180.0,0.0468]
[1760213109949,0.20456321,111190.0,111170.0,0.19956349]
[1760213110161,0.17988846,111180.0,111170.0,0.01966]
[1760213110567,0.17987321,111190.0,111170.0,0.22670465]
[1760213110745,0.17988846,111180.0,111170.0,0.26686465]
[1760213110944,0.17987321,111190.0,111170.0,0.26686465]
[1760213111166,0.17988846,111180.0,111170.0,0.26686465]
[1760213111522,0.17988846,111180.0,111170.0,0.0468]
[1760213111736,0.17990465,111170.0,111160.0,0.01981128]
[1760213111946,0.19479465,111170.0,111160.0,0.00015128]
[1760213112228,0.21999465,111170.0,111160.0,0.00015128]
[1760213112452,1.14331838,111170.0,111160.0,0.00015128]
[1760213112661,1.2311478,111170.0,111160.0,0.00015128]
[1760213112872,1.5711478,111170.0,111160.0,0.00015128]
[1760213113080,1.51347028,111170.0,111160.0,0.00015128]
[1760213113504,1.25825953,111170.0,111160.0,0.00015128]
[1760213115039,1.25825953,111170.0,111130.0,0.0004]
[1760213115264,1.15828619,111140.0,111130.0,0.0004]
[1760213115480,1.20332809,111140.0,111130.0,0.07202362]
[1760213115691,1.20332809,111140.0,111130.0,0.0004]
[1760213115692,1.22852809,111140.0,111130.0,0.0004]
[1760213115905,0.59019511,111140.0,111130.0,0.00568699]
[1760213116180,1.22852809,111140.0,111130.0,0.00568699]
[1760213116814,1.25830809,111140.0,111130.0,0.00568699]
[1760213120538,0.22499511,111140.0,111130.0,0.02417699]
[1760213120762,0.17995321,111140.0,111130.0,0.05034699]
[1760213120973,0.83317348,111150.0,111130.0,0.05034699]
[1760213121184,0.83317348,111150.0,111140.0,0.05581]
[1760213121185,0.17994578,111150.0,111140.0,0.05581]
[1760213121365,0.19483578,111150.0,111140.0,0.04466]
[1760213122015,0.18894281,111160.0,111140.0,0.26193321]
[1760213122228,0.001,111150.0,111140.0,0.26193321]
[1760213122480,0.002,111150.0,111140.0,0.26193321]
[1760213122686,0.001,111150.0,111140.0,0.26193321]
[1760213123108,0.002,111150.0,111140.0,0.26193321]
[1760213123320,0.001,111150.0,111140.0,0.26193321]
[1760213123534,0.17992083,111160.0,111140.0,0.22461321]
[1760213123775,0.17992083,111160.0,111150.0,0.01849]
[1760213123988,0.17993702,111150.0,111140.0,0.22461321]
[1760213124415,0.17993702,111150.0,111140.0,0.01849]
[1760213124671,0.17995321,111140.0,111130.0,0.01889]
[1760213124884,0.17995321,111140.0,111130.0,0.1988594]
[1760213125111,0.17995321,111140.0,111130.0,0.2250294]
[1760213125345,0.19482702,111150.0,111130.0,0.2623494]
[1760213125560,0.17992485,111160.0,111150.0,0.17993702]
[1760213125785,0.17992485,111160.0,111150.0,0.04466]
[1760213126003,0.17992485,111160.0,111150.0,0.08198]
[1760213126223,0.19494649,111170.0,111150.0,0.26191702]
[1760213126433,0.17992083,111160.0,111150.0,0.26191702]
[1760213127293,0.19494649,111170.0,111150.0,0.26191702]
[1760213127720,0.00015108,111170.0,111160.0,0.23573083]
[1760213127938,0.00015108,111170.0,111160.0,0.26190083]
[1760213128587,0.00015108,111170.0,111160.0,1.24023381]
[1760213128796,0.17987229,111190.0,111170.0,0.18887968]
[1760213129002,0.17987229,111190.0,111180.0,0.08198]
[1760213129217,0.20507229,111190.0,111180.0,0.04466]
[1760213129430,0.17988846,111180.0,111170.0,0.01849]
[1760213129853,0.17990465,111170.0,111160.0,0.02049]
[1760213130077,0.19479465,111170.0,111160.0,0.02049]
[1760213130281,0.19479465,111170.0,111160.0,0.04666]
[1760213130517,0.85832763,111170.0,111160.0,0.002]
[1760213130733,0.88810763,111170.0,111160.0,0.001]
[1760213130949,0.91825953,111170.0,111160.0,0.001]
[1760213131161,0.17993702,111150.0,111140.0,0.01849]
[1760213131425,0.17993702,111150.0,111140.0,0.01864108]
[1760213131646,0.19482702,111150.0,111140.0,0.01864108]
[1760213131860,0.17993702,111150.0,111140.0,0.26208429]
[1760213132305,0.17993702,111150.0,111140.0,0.22476429]
[1760213132758,0.22002702,111150.0,111140.0,0.00015108]
[1760213132970,0.88814,111150.0,111140.0,0.00115108]
[1760213133406,0.88814,111150.0,111140.0,0.00215108]
[1760213133840,0.9182919,111150.0,111140.0,0.00215108]
[1760213134477,0.9182919,111150.0,111140.0,0.00115108]
[1760213134678,0.9182919,111150.0,111140.0,0.00015108]
[1760213134903,0.25017892,111150.0,111140.0,0.00015108]
[1760213135120,0.19482702,111150.0,111140.0,0.00015108]
[1760213135367,0.19482702,111150.0,111140.0,0.04481108]
[1760213135578,0.19482702,111150.0,111140.0,0.01864108]
[1760213136007,0.19482702,111150.0,111140.0,0.04481108]
[1760213136222,0.01489,111150.0,111140.0,0.04481108]
[1760213136437,0.17993702,111150.0,111140.0,0.26208429]
[1760213136674,0.17993425,111160.0,111140.0,0.26208429]
[1760213136878,0.17993702,111150.0,111140.0,0.26208429]
[1760213137294,0.17993702,111150.0,111140.0,0.26678342]
[1760213137964,0.17993425,111160.0,111140.0,0.26678342]
[1760213138181,0.20378988,111170.0,111150.0,0.23574702]
[1760213138397,0.20378988,111170.0,111160.0,0.19841083]
[1760213138634,0.17988846,111180.0,111160.0,0.26190083]
[1760213138848,0.17990465,111170.0,111160.0,0.22810455]
[1760213139078,0.17990465,111170.0,111160.0,0.26190083]
[1760213139328,0.84208888,111190.0,111170.0,0.17989793]
[1760213139555,0.2037559,111190.0,111180.0,0.01849]
[1760213140014,0.1888659,111190.0,111180.0,0.08198]
[1760213140224,0.17987229,111190.0,111180.0,0.22454846]
[1760213140437,0.18885346,111200.0,111180.0,0.26186846]
[1760213140659,0.19467229,111190.0,111180.0,0.04466]
[1760213141100,0.17987229,111190.0,111180.0,0.08412]
[1760213141318,0.20512229,111190.0,111180.0,0.01849]
[1760213141490,0.17991229,111190.0,111180.0,0.04423]
[1760213141707,0.17991229,111190.0,111180.0,0.01849]
[1760213142645,0.17988846,111180.0,111160.0,0.01849]
[1760213142857,0.19566465,111170.0,111160.0,0.01849]
[1760213143292,0.19566465,111170.0,111160.0,0.19841083]
[1760213143494,0.19566465,111170.0,111160.0,0.22415083]
[1760213143718,0.19566465,111170.0,111160.0,0.01849]
[1760213143918,0.22067465,111170.0,111150.0,0.23572274]
[1760213144119,0.22067465,111170.0,111150.0,0.23587382]
[1760213144572,0.18888288,111180.0,111160.0,0.26298083]
[1760213144798,0.18888288,111180.0,111170.0,0.02002]
[1760213145272,0.17934081,111200.0,111170.0,0.04576]
[1760213145499,0.17934081,111200.0,111190.0,0.02002]
[1760213145717,0.18889341,111210.0,111190.0,0.08482139]
[1760213145923,0.17985611,111200.0,111190.0,0.08306]
[1760213146130,0.17985611,111200.0,111190.0,0.04576]
[1760213146338,0.17987229,111190.0,111180.0,0.20890148]
[1760213146555,0.17987229,111190.0,111180.0,0.27194148]
[1760213146705,0.17987229,111190.0,111180.0,0.04576]
[1760213146929,0.17988846,111180.0,111170.0,0.19992436]
[1760213147137,0.17988846,111180.0,111170.0,0.02002]
[1760213147558,0.17990465,111170.0,111160.0,0.02002]
[1760213147962,0.17990465,111170.0,111160.0,0.04576]
[1760213148204,0.17990465,111170.0,111160.0,0.02002]
[1760213148406,0.17990465,111170.0,111160.0,0.04576]
[1760213148803,0.17994465,111170.0,111160.0,0.04576]
[1760213149019,0.17994465,111170.0,111160.0,0.04676]
[1760213149427,0.17994465,111170.0,111160.0,0.22568083]
[1760213150198,4e-05,111170.0,111160.0,0.22568083]
[1760213150482,0.17994465,111170.0,111160.0,0.04676]
[1760213150825,0.17992083,111160.0,111150.0,0.02002]
[1760213151038,0.17992083,111160.0,111150.0,0.2001081]
[1760213151437,0.81827763,111170.0,111150.0,0.2631481]
[1760213151647,0.17994465,111170.0,111160.0,0.02002]
[1760213151896,0.17994465,111170.0,111160.0,0.04576]
[1760213152110,0.17994465,111170.0,111160.0,0.02002]
[1760213152550,0.17994465,111170.0,111160.0,0.04576]
[1760213152971,0.17998465,111170.0,111160.0,0.04576]
[1760213154026,0.17998465,111170.0,111160.0,0.02002]
[1760213154245,0.17998465,111170.0,111160.0,0.04576]
[1760213154490,0.17998465,111170.0,111160.0,0.08306]
[1760213154704,8e-05,111170.0,111160.0,0.26298083]
[1760213154914,0.17998465,111170.0,111160.0,0.26298083]
[1760213155366,0.17998465,111170.0,111160.0,0.08306]
[1760213155599,0.17998465,111170.0,111160.0,0.02002]
[1760213156014,0.17998465,111170.0,111150.0,0.20010547]
[1760213156222,0.17992083,111160.0,111150.0,0.20010547]
[1760213156442,0.17992083,111160.0,111150.0,0.26314547]
[1760213156657,0.17992083,111160.0,111150.0,0.08732245]
[1760213156864,0.17992083,111160.0,111150.0,0.05002245]
[1760213157046,0.17992083,111160.0,111150.0,0.02428245]
[1760213157522,0.17992083,111160.0,111150.0,0.02528245]
[1760213157953,0.17992083,111160.0,111150.0,0.05102245]
[1760213158131,0.17992083,111160.0,111150.0,0.02528245]
[1760213158329,0.17992083,111160.0,111150.0,0.02628245]
[1760213158797,0.17996083,111160.0,111150.0,0.05202245]
[1760213159424,0.17996083,111160.0,111150.0,0.23195947]
[1760213160248,4e-05,111160.0,111150.0,0.26925947]
[1760213160459,0.17996083,111160.0,111150.0,0.26925947]
[1760213161069,0.17996083,111160.0,111150.0,0.23195947]
[1760213161701,8e-05,111170.0,111150.0,1.24759245]
[1760213161913,8e-05,111170.0,111160.0,1.21557381]
[1760213162123,0.17989611,111200.0,111180.0,0.17987476]
[1760213162328,0.17989611,111200.0,111180.0,0.19989476]
[1760213162541,0.17987229,111190.0,111180.0,0.02002]
[1760213162962,0.81822909,111200.0,111180.0,0.26294846]
[1760213163181,4e-05,111200.0,111190.0,0.23719229]
[1760213163412,0.17989611,111200.0,111190.0,0.08306]
[1760213163627,4e-05,111200.0,111190.0,0.26293229]
[1760213164276,0.00204,111200.0,111190.0,0.26293229]
[1760213164495,0.00104,111200.0,111190.0,0.26293229]
[1760213164709,4e-05,111200.0,111190.0,0.90126527]
[1760213165138,4e-05,111200.0,111190.0,1.24126527]
[1760213165570,0.0725889,111230.0,111200.0,0.34]
[1760213165808,0.07274066,111230.0,111220.0,0.22558377]
[1760213166015,0.00111704,111230.0,111220.0,0.26288377]
[1760213167504,0.18092464,111230.0,111220.0,0.26288377]
[1760213168780,0.00111704,111230.0,111220.0,0.26288377]
[1760213170097,0.18092464,111230.0,111220.0,0.26288377]
[1760213170297,0.00111704,111230.0,111220.0,0.26288377]
[1760213171366,0.00111704,111230.0,111220.0,0.90121675]
[1760213171586,0.00111704,111230.0,111220.0,0.26288377]
[1760213172446,0.00111704,111230.0,111220.0,1.33074627]
[1760213172867,0.26044417,111270.0,111260.0,0.17975912]
[1760213172868,0.07162362,111270.0,111260.0,0.17975912]
[1760213173072,0.07162362,111270.0,111260.0,0.26172912]
[1760213173073,0.07212918,111270.0,111260.0,0.26172912]
[1760213173295,0.00050556,111270.0,111260.0,0.26172912]
[1760213173754,0.17972882,111280.0,111260.0,0.26172912]
[1760213173959,0.17974296,111270.0,111260.0,0.26172912]
[1760213174398,0.17988043,111280.0,111270.0,0.17974296]
[1760213174652,0.17987842,111280.0,111270.0,0.0446]
[1760213174883,0.17987842,111280.0,111270.0,0.08197]
[1760213175141,0.00015161,111280.0,111270.0,0.27885906]
[1760213175366,0.00015161,111280.0,111270.0,0.26171296]
[1760213178938,0.18326842,111280.0,111270.0,0.0446]
[1760213179149,0.18326842,111280.0,111260.0,0.01941]
[1760213179150,0.17974296,111270.0,111260.0,0.01941]
[1760213179575,0.18313296,111270.0,111260.0,0.01941]
[1760213180406,0.17974296,111270.0,111260.0,0.0446]
[1760213180529,0.18313296,111270.0,111260.0,0.0446]
[1760213180935,0.17974296,111270.0,111260.0,0.0446]
[1760213182433,0.18313296,111270.0,111260.0,0.0446]
[1760213182644,0.17975912,111260.0,111250.0,0.01941]
[1760213182844,0.17977528,111250.0,111240.0,0.05721]
[1760213183125,0.17977528,111250.0,111240.0,0.0824]
[1760213183338,0.17975912,111260.0,111240.0,0.29956144]
[1760213183525,0.17975912,111260.0,111250.0,0.01941]
[1760213183732,0.1887301,111270.0,111250.0,0.26174528]
[1760213183883,0.17975912,111260.0,111250.0,0.08297]
[1760213184266,0.18314912,111260.0,111250.0,0.001]
[1760213184729,1.10745983,111260.0,111250.0,0.001]
[1760213184985,1.10745983,111260.0,111250.0,0.002]
[1760213185186,1.44745983,111260.0,111250.0,0.002]
[1760213185309,0.1798076,111230.0,111220.0,0.00096534]
[1760213186184,0.1798076,111230.0,111220.0,0.04556534]
[1760213186594,0.1831976,111230.0,111220.0,0.0014709]
[1760213188803,0.1853176,111230.0,111220.0,0.0014709]
[1760213189013,1.07735641,111230.0,111220.0,0.0014709]
[1760213189218,1.41735641,111230.0,111220.0,0.0014709]
[1760213189859,1.44750831,111230.0,111220.0,0.0014709]
[1760213192180,1.46674211,111230.0,111220.0,0.0014709]
[1760213192383,0.17987229,111190.0,111180.0,0.09103362]
[1760213192616,0.17987229,111190.0,111180.0,0.09118538]
[1760213192817,0.18326229,111190.0,111180.0,0.09118538]
[1760213192998,0.18326229,111190.0,111180.0,0.01956176]
[1760213193231,0.17987229,111190.0,111180.0,0.04475176]
[1760213193463,0.18326229,111190.0,111180.0,0.01956176]
[1760213193916,0.18326229,111190.0,111180.0,0.00015176]
[1760213194137,0.17987229,111190.0,111180.0,0.04475176]
[1760213195428,0.17987229,111190.0,111180.0,0.26201022]
[1760213195642,0.18326229,111190.0,111180.0,0.04475176]
[1760213195848,0.18326229,111190.0,111180.0,0.00015176]
[1760213196259,0.18326229,111190.0,111180.0,0.26201022]
[1760213196260,0.17987229,111190.0,111180.0,0.26201022]
[1760213196742,0.17985853,111200.0,111190.0,0.17987229]
[1760213196954,0.17985611,111200.0,111190.0,0.0446]
[1760213197599,0.17985611,111200.0,111190.0,0.26184229]
[1760213197834,0.18885799,111210.0,111190.0,0.22447229]
[1760213198044,0.17985611,111200.0,111190.0,0.22447229]
[1760213198253,0.18885799,111210.0,111190.0,0.0446]
[1760213198488,0.52885799,111210.0,111200.0,0.01941]
[1760213198707,0.53164799,111210.0,111200.0,0.20504611]
[1760213198920,0.51983994,111210.0,111200.0,0.0446]
[1760213199153,0.18879798,111230.0,111210.0,0.17983994]
[1760213199365,0.18879798,111230.0,111210.0,0.23661994]
[1760213199783,0.17980506,111240.0,111220.0,0.22442377]
[1760213200004,0.1798076,111230.0,111220.0,0.26179377]
[1760213200215,0.17980506,111240.0,111220.0,0.26179377]
[1760213200669,0.17979144,111240.0,111230.0,0.2397076]
[1760213200873,0.17979144,111240.0,111230.0,0.2665976]
[1760213201084,0.17979144,111240.0,111230.0,0.08679]
[1760213201328,0.1798076,111230.0,111220.0,0.01941]
[1760213201543,0.17982377,111220.0,111200.0,0.27087964]
[1760213201776,0.17982377,111220.0,111200.0,0.3084514]
[1760213201986,0.17982377,111220.0,111200.0,0.05698176]
[1760213202202,0.17982377,111220.0,111200.0,0.23683787]
[1760213202416,0.18879798,111230.0,111210.0,0.26198994]
[1760213202625,0.17982377,111220.0,111210.0,0.22456994]
[1760213202842,0.17982377,111220.0,111210.0,0.04473]
[1760213203259,0.1897633,111230.0,111210.0,0.22456994]
[1760213203468,0.17982377,111220.0,111210.0,0.04473]
[1760213203883,0.17983994,111210.0,111200.0,0.01956176]
[1760213204359,0.17983994,111210.0,111200.0,0.04482176]
[1760213204570,0.17982377,111220.0,111200.0,0.26209316]
[1760213205207,0.17982377,111220.0,111210.0,0.19930994]
[1760213205418,0.17983994,111210.0,111200.0,0.23683316]
[1760213205631,0.17983994,111210.0,111200.0,0.22467316]
[1760213205831,0.17982377,111220.0,111200.0,0.26209316]
[1760213206187,0.17982377,111220.0,111210.0,0.01947]
[1760213206590,0.18246377,111220.0,111200.0,0.23683316]
[1760213206793,0.18246377,111220.0,111210.0,0.02526]
[1760213207003,0.17982377,111220.0,111210.0,0.26198994]
[1760213207177,0.1897633,111230.0,111220.0,0.17982377]
[1760213207349,0.00096532,111230.0,111220.0,0.26197377]
[1760213207957,0.18341292,111230.0,111210.0,0.01947]
[1760213208197,0.18077292,111230.0,111220.0,0.22455377]
[1760213208383,0.18077292,111230.0,111220.0,0.26197377]
[1760213208682,0.18077292,111230.0,111220.0,0.08215]
[1760213208903,0.00096532,111230.0,111220.0,0.27995614]
[1760213209030,0.00096532,111230.0,111220.0,0.26197377]
[1760213210856,0.00096532,111230.0,111220.0,0.60197377]
[1760213211927,0.00096532,111230.0,111220.0,0.60297377]
[1760213212298,0.00096532,111230.0,111220.0,0.60397377]
[1760213213735,0.16272954,111250.0,111230.0,0.17980105]
[1760213214063,0.1717183,111250.0,111240.0,0.04473]
[1760213214239,0.1717183,111250.0,111240.0,0.08215]
[1760213214498,0.1717183,111250.0,111240.0,0.04473]
[1760213214678,0.17289183,111250.0,111240.0,0.04473]
[1760213214879,0.00264,111250.0,111240.0,0.04473]
[1760213215105,0.01162876,111250.0,111240.0,0.01947]
[1760213215333,0.19140497,111250.0,111240.0,0.01947]
[1760213216161,0.19140497,111250.0,111240.0,0.04473]
[1760213216717,0.19140497,111250.0,111230.0,0.1992776]
[1760213216718,0.17979144,111240.0,111230.0,0.1992776]
[1760213216922,0.17979144,111240.0,111230.0,0.08215]
[1760213217125,0.17979144,111240.0,111230.0,0.2619576]
[1760213217323,0.17979144,111240.0,111230.0,0.04473]
[1760213217713,0.1798076,111230.0,111210.0,0.23672356]
[1760213217945,0.18246377,111220.0,111210.0,0.04488176]
[1760213218152,0.18246377,111220.0,111210.0,0.00015176]
[1760213218361,0.18246377,111220.0,111210.0,0.02541176]
[1760213218560,0.18246377,111220.0,111210.0,0.04488176]
[1760213219396,0.18246377,111220.0,111210.0,0.00015176]
[1760213220984,0.18246377,111220.0,111210.0,0.04488176]
[1760213221208,0.1798076,111230.0,111210.0,0.2247217]
[1760213221416,0.1798076,111230.0,111220.0,0.01947]
[1760213221634,0.18246377,111220.0,111210.0,0.04488176]
[1760213221850,0.18246377,111220.0,111210.0,0.00015176]
[1760213222053,0.18246377,111220.0,111210.0,0.02541176]
[1760213222255,0.18246377,111220.0,111210.0,0.04488176]
[1760213222458,0.18246377,111220.0,111210.0,0.04470344]
[1760213222663,0.18878101,111240.0,111210.0,0.26468955]
[1760213222875,0.18540436,111250.0,111230.0,0.01947]
[1760213223071,0.18540436,111250.0,111240.0,0.04473]
[1760213223490,0.18540436,111250.0,111240.0,0.08215]
[1760213223692,0.18540436,111250.0,111240.0,0.22452144]
[1760213223905,0.17979144,111240.0,111230.0,0.01947]
[1760213224115,0.1798076,111230.0,111210.0,0.09109362]
[1760213224328,0.17982377,111220.0,111210.0,0.09109362]
[1760213224541,0.18250377,111220.0,111210.0,0.01947]
[1760213224765,0.17983994,111210.0,111200.0,0.09469]
[1760213224979,0.17983994,111210.0,111200.0,0.05727]
[1760213224980,0.1826715,111210.0,111200.0,0.05727]
[1760213225188,0.1826715,111210.0,111200.0,0.0378]
[1760213226015,0.1826715,111210.0,111190.0,0.19934137]
[1760213226016,0.17985611,111200.0,111190.0,0.01947]
[1760213226443,0.18253611,111200.0,111180.0,0.30840144]
[1760213226860,0.18253611,111200.0,111180.0,0.23677782]
[1760213227060,0.17985611,111200.0,111190.0,0.22460229]
[1760213227286,0.18898349,111210.0,111190.0,0.22460229]
[1760213227505,0.18898349,111210.0,111200.0,0.01947]
[1760213227927,0.00015156,111210.0,111200.0,0.22458611]
[1760213228134,0.00015156,111210.0,111200.0,0.26200611]
[1760213229641,0.1837115,111210.0,111190.0,0.01947]
[1760213229866,0.17985611,111200.0,111190.0,0.01947]
[1760213230074,0.17985611,111200.0,111180.0,0.39689]
[1760213230298,0.17987229,111190.0,111180.0,0.01947]
[1760213230957,0.17987229,111190.0,111180.0,0.04473]
[1760213231195,0.17987229,111190.0,111170.0,0.01947]
[1760213231196,0.17988846,111180.0,111170.0,0.01947]
[1760213231622,0.17988846,111180.0,111170.0,0.04618]
[1760213232707,0.17988846,111180.0,111160.0,0.05727]
[1760213232708,0.17990465,111170.0,111160.0,0.05727]
[1760213232926,0.1888659,111190.0,111170.0,0.17990458]
[1760213233140,0.1888659,111190.0,111180.0,0.01994]
[1760213233356,0.17988846,111180.0,111170.0,0.19984465]
[1760213233587,0.17988846,111180.0,111170.0,0.22655465]
[1760213233813,0.17997929,111180.0,111170.0,0.04665]